[Event "*** Titled Tuesday Blitz"]
[Site "Chess.com"]
[Date "2021.02.16"]
[Round "1"]
[White "BlackGod93"]
[Black "SilviusTiberius"]
[Result "0-1"]
[WhiteElo "2247"]
[BlackElo "2562"]
[TimeControl "180+1"]
[EndTime "10:05:43 PST"]
[Termination "SilviusTiberius won by resignation"]

1. d4 {[%clk 0:03:00.9]} 1... Nf6 {[%clk 0:02:59.4]} 2. Nf3 {[%clk 0:03:00.9]}
2... e6 {[%clk 0:02:59.1]} 3. g3 {[%clk 0:03:00.3]} 3... d5 {[%clk 0:02:59.2]}
4. Bg2 {[%clk 0:03:00.3]} 4... Be7 {[%clk 0:02:59.8]} 5. O-O {[%clk 0:03:00.9]}
5... O-O {[%clk 0:03:00.3]} 6. c4 {[%clk 0:03:01.5]} 6... dxc4 {[%clk
0:03:01.2]} 7. Qc2 {[%clk 0:03:02]} 7... a6 {[%clk 0:03:01.2]} 8. a4 {[%clk
0:03:02.4]} 8... Bd7 {[%clk 0:03:01.5]} 9. Qxc4 {[%clk 0:03:02.9]} 9... Bc6
{[%clk 0:03:02]} 10. Bf4 {[%clk 0:03:03.5]} 10... Nbd7 {[%clk 0:02:58.9]} 11.
Nc3 {[%clk 0:03:03.3]} 11... Nb6 {[%clk 0:02:57.9]} 12. Qd3 {[%clk 0:03:01.3]}
12... Nbd5 {[%clk 0:02:58.4]} 13. Bd2 {[%clk 0:02:55.5]} 13... Nxc3 {[%clk
0:02:44.8]} 14. bxc3 {[%clk 0:02:51.8]} 14... Be4 {[%clk 0:02:44.5]} 15. Qe3
{[%clk 0:02:50.4]} 15... Qd5 {[%clk 0:02:41.7]} 16. Rfc1 {[%clk 0:02:46.6]}
16... b5 {[%clk 0:02:40.6]} 17. h3 {[%clk 0:02:42.7]} 17... c5 {[%clk
0:02:33.2]} 18. Kh2 {[%clk 0:02:40.8]} 18... b4 {[%clk 0:02:27.2]} 19. cxb4
{[%clk 0:02:37.7]} 19... cxb4 {[%clk 0:02:27.1]} 20. a5 {[%clk 0:02:11.3]} 20...
b3 {[%clk 0:02:25.6]} 21. Bc3 {[%clk 0:02:07]} 21... Rfc8 {[%clk 0:02:17.1]} 22.
Bb2 {[%clk 0:02:07]} 22... Rc2 {[%clk 0:02:15.2]} 23. Rxc2 {[%clk 0:02:01.9]}
23... bxc2 {[%clk 0:02:15.2]} 24. Qc3 {[%clk 0:01:58.5]} 24... Qb7 {[%clk
0:02:07.3]} 25. d5 {[%clk 0:01:48.3]} 25... Rc8 {[%clk 0:02:03.9]} 26. Qe5
{[%clk 0:01:47.9]} 26... Qxd5 {[%clk 0:02:01.3]} 27. Rc1 {[%clk 0:01:44.9]}
27... Bxf3 {[%clk 0:01:56.4]} 28. Bxf3 {[%clk 0:01:44.3]} 28... Qxe5 {[%clk
0:01:56.5]} 29. Bxe5 {[%clk 0:01:45.2]} 29... Ba3 {[%clk 0:01:55.7]} 30. Bb7
{[%clk 0:01:30.8]} 30... Bxc1 {[%clk 0:01:43.4]} 31. Bxc8 {[%clk 0:01:30.6]}
31... Bd2 {[%clk 0:01:41.8]} 32. Bb2 {[%clk 0:01:30.8]} 32... c1=Q {[%clk
0:01:39]} 33. Bxc1 {[%clk 0:01:30.9]} 33... Bxc1 {[%clk 0:01:39.9]} 34. Bxa6
{[%clk 0:01:31.3]} 34... Bd2 {[%clk 0:01:40.5]} 35. Kg2 {[%clk 0:01:30.8]} 35...
Bxa5 {[%clk 0:01:40.9]} 36. Kf3 {[%clk 0:01:31.4]} 36... Kf8 {[%clk 0:01:41.4]}
37. e3 {[%clk 0:01:30.8]} 37... Ke7 {[%clk 0:01:41.7]} 38. Bb5 {[%clk
0:01:31.3]} 38... e5 {[%clk 0:01:41.3]} 39. Bd3 {[%clk 0:01:31.8]} 39... e4+
{[%clk 0:01:40.6]} 40. Bxe4 {[%clk 0:01:31.3]} 40... Nxe4 {[%clk 0:01:41.5]} 41.
Kxe4 {[%clk 0:01:32.2]} 41... Ke6 {[%clk 0:01:41.7]} 42. f4 {[%clk 0:01:32.3]}
42... f5+ {[%clk 0:01:41]} 43. Kf3 {[%clk 0:01:32.4]} 43... Kd5 {[%clk
0:01:39.5]} 44. g4 {[%clk 0:01:32.2]} 44... g6 {[%clk 0:01:39.8]} 45. h4 {[%clk
0:01:32.2]} 45... Bb4 {[%clk 0:01:38.2]} 46. h5 {[%clk 0:01:31.7]} 46... Be7
{[%clk 0:01:33.8]} 47. hxg6 {[%clk 0:01:26]} 47... hxg6 {[%clk 0:01:33.6]} 48.
e4+ {[%clk 0:01:16.4]} 48... fxe4+ {[%clk 0:01:33.2]} 49. Ke2 {[%clk 0:01:17.3]}
49... Kd4 {[%clk 0:01:31.8]} 50. Kd2 {[%clk 0:01:17.6]} 50... e3+ {[%clk
0:01:30.9]} 51. Ke2 {[%clk 0:01:18]} 51... Ke4 {[%clk 0:01:31.4]} 52. f5 {[%clk
0:01:18.6]} 52... gxf5 {[%clk 0:01:29.4]} 53. gxf5 {[%clk 0:01:19.5]} 53... Bg5
{[%clk 0:01:29.7]} 54. f6 {[%clk 0:01:19.8]} 54... Bxf6 {[%clk 0:01:29.7]} 0-1

[Event "*** Titled Tuesday Blitz"]
[Site "Chess.com"]
[Date "2021.02.16"]
[Round "1"]
[White "barriochess"]
[Black "lilleper1"]
[Result "0-1"]
[WhiteElo "2427"]
[BlackElo "2836"]
[TimeControl "180+1"]
[EndTime "10:05:44 PST"]
[Termination "lilleper1 won by resignation"]

1. d4 {[%clk 0:03:00.9]} 1... Nf6 {[%clk 0:02:59.4]} 2. c4 {[%clk 0:02:57.5]}
2... e6 {[%clk 0:02:59.7]} 3. Nf3 {[%clk 0:02:56.8]} 3... Bb4+ {[%clk
0:02:59.8]} 4. Bd2 {[%clk 0:02:54.8]} 4... a5 {[%clk 0:03:00]} 5. Nc3 {[%clk
0:02:51.8]} 5... O-O {[%clk 0:02:57.2]} 6. Qc2 {[%clk 0:02:50.8]} 6... d5 {[%clk
0:02:55.1]} 7. cxd5 {[%clk 0:02:43.5]} 7... exd5 {[%clk 0:02:56]} 8. a3 {[%clk
0:02:42.8]} 8... Be7 {[%clk 0:02:52.7]} 9. Bf4 {[%clk 0:02:38.7]} 9... c6 {[%clk
0:02:50]} 10. e3 {[%clk 0:02:37.9]} 10... Bg4 {[%clk 0:02:48.4]} 11. Ne5 {[%clk
0:02:36.7]} 11... Bh5 {[%clk 0:02:48.1]} 12. Bd3 {[%clk 0:02:35.9]} 12... Nbd7
{[%clk 0:02:42.4]} 13. Bf5 {[%clk 0:02:27.2]} 13... Bg6 {[%clk 0:02:38.4]} 14.
O-O {[%clk 0:02:17.2]} 14... Nxe5 {[%clk 0:02:34.5]} 15. Bxe5 {[%clk 0:02:14.9]}
15... Bd6 {[%clk 0:02:28]} 16. Bxd6 {[%clk 0:02:12.4]} 16... Qxd6 {[%clk
0:02:28.9]} 17. Bxg6 {[%clk 0:02:12.6]} 17... fxg6 {[%clk 0:02:17.2]} 18. h3
{[%clk 0:02:11.4]} 18... Rae8 {[%clk 0:02:16.2]} 19. Rab1 {[%clk 0:02:09.6]}
19... g5 {[%clk 0:02:16.3]} 20. g3 {[%clk 0:01:41.5]} 20... g4 {[%clk
0:02:10.5]} 21. h4 {[%clk 0:01:34]} 21... Nh5 {[%clk 0:02:04.9]} 22. Ne2 {[%clk
0:01:32.4]} 22... Rf3 {[%clk 0:02:00.8]} 23. Nf4 {[%clk 0:01:31.4]} 23... Nxg3
{[%clk 0:01:28.1]} 24. fxg3 {[%clk 0:01:28.8]} 24... Rxg3+ {[%clk 0:01:29]} 25.
Kh2 {[%clk 0:01:22.1]} 25... Rexe3 {[%clk 0:01:23.9]} 26. Qf5 {[%clk 0:01:17.5]}
26... Rh3+ {[%clk 0:01:00.6]} 27. Kg1 {[%clk 0:01:11.9]} 27... Reg3+ {[%clk
0:00:57.7]} 28. Kf2 {[%clk 0:01:08.3]} 28... Rf3+ {[%clk 0:00:54.1]} 29. Ke2
{[%clk 0:01:08.2]} 29... Rh2+ {[%clk 0:00:51.7]} 30. Ke1 {[%clk 0:01:06.7]}
30... Qe7+ {[%clk 0:00:45.5]} 0-1

[Event "*** Titled Tuesday Blitz"]
[Site "Chess.com"]
[Date "2021.02.16"]
[Round "1"]
[White "eldur16"]
[Black "Kapibara_Warri0r"]
[Result "1-0"]
[WhiteElo "2517"]
[BlackElo "2166"]
[TimeControl "180+1"]
[EndTime "10:05:51 PST"]
[Termination "eldur16 won by checkmate"]

1. c4 {[%clk 0:03:00.1]} 1... e5 {[%clk 0:02:57.8]} 2. g3 {[%clk 0:02:59.8]}
2... Nf6 {[%clk 0:02:57.7]} 3. Bg2 {[%clk 0:02:59.7]} 3... d5 {[%clk 0:02:58.2]}
4. cxd5 {[%clk 0:02:59.1]} 4... Nxd5 {[%clk 0:02:59.1]} 5. Nf3 {[%clk
0:02:58.5]} 5... Nc6 {[%clk 0:02:59.4]} 6. O-O {[%clk 0:02:57]} 6... Be7 {[%clk
0:02:58.8]} 7. d4 {[%clk 0:02:57]} 7... e4 {[%clk 0:02:37.2]} 8. Ne5 {[%clk
0:02:56.4]} 8... f5 {[%clk 0:02:15.9]} 9. Nxc6 {[%clk 0:02:55.3]} 9... bxc6
{[%clk 0:02:15.6]} 10. Qc2 {[%clk 0:02:42.2]} 10... Bb7 {[%clk 0:01:56]} 11. Rd1
{[%clk 0:02:36.9]} 11... O-O {[%clk 0:01:56]} 12. Nc3 {[%clk 0:02:32.4]} 12...
Rb8 {[%clk 0:01:55.6]} 13. Na4 {[%clk 0:02:31.1]} 13... Bg5 {[%clk 0:01:43.8]}
14. Nc5 {[%clk 0:02:22.8]} 14... Bc8 {[%clk 0:01:43.1]} 15. Bxg5 {[%clk
0:02:19.7]} 15... Qxg5 {[%clk 0:01:44]} 16. e3 {[%clk 0:02:19.1]} 16... Qf6
{[%clk 0:01:29.6]} 17. Rac1 {[%clk 0:02:18]} 17... g5 {[%clk 0:01:28]} 18. a3
{[%clk 0:02:11.2]} 18... Kh8 {[%clk 0:01:27.6]} 19. b4 {[%clk 0:02:08.8]} 19...
f4 {[%clk 0:01:02.6]} 20. exf4 {[%clk 0:01:59.5]} 20... e3 {[%clk 0:00:49]} 21.
Ne4 {[%clk 0:01:57.1]} 21... exf2+ {[%clk 0:00:45.9]} 22. Qxf2 {[%clk
0:01:55.8]} 22... Qg6 {[%clk 0:00:44.7]} 23. Nxg5 {[%clk 0:01:54]} 23... Bg4
{[%clk 0:00:38.2]} 24. Re1 {[%clk 0:01:52.9]} 24... Rbe8 {[%clk 0:00:35.7]} 25.
Rxe8 {[%clk 0:01:47.6]} 25... Rxe8 {[%clk 0:00:36.6]} 26. Re1 {[%clk 0:01:47.6]}
26... h6 {[%clk 0:00:30.5]} 27. Nf3 {[%clk 0:01:45.7]} 27... Bxf3 {[%clk
0:00:22.1]} 28. Bxf3 {[%clk 0:01:45.2]} 28... Nc3 {[%clk 0:00:19.7]} 29. Kg2
{[%clk 0:01:40.7]} 29... Rxe1 {[%clk 0:00:15.9]} 30. Qxe1 {[%clk 0:01:39.5]}
30... Qc2+ {[%clk 0:00:16.8]} 31. Kh3 {[%clk 0:01:36.5]} 31... Qf5+ {[%clk
0:00:15.9]} 32. Bg4 {[%clk 0:01:36.1]} 32... Qd3 {[%clk 0:00:13.6]} 33. Qe5+
{[%clk 0:01:34.5]} 33... Kg8 {[%clk 0:00:13.9]} 34. Be6+ {[%clk 0:01:33.5]}
34... Kf8 {[%clk 0:00:13.3]} 35. Qf6+ {[%clk 0:01:32.8]} 35... Ke8 {[%clk
0:00:13.2]} 36. Qf7+ {[%clk 0:01:32.8]} 36... Kd8 {[%clk 0:00:13.6]} 37. Qd7#
{[%clk 0:01:32.7]} 1-0

[Event "*** Titled Tuesday Blitz"]
[Site "Chess.com"]
[Date "2021.02.16"]
[Round "1"]
[White "hansen"]
[Black "HackingKid98"]
[Result "1-0"]
[WhiteElo "2924"]
[BlackElo "2460"]
[TimeControl "180+1"]
[EndTime "10:05:54 PST"]
[Termination "hansen won on time"]

1. e4 {[%clk 0:02:59.9]} 1... c6 {[%clk 0:02:59.2]} 2. Nf3 {[%clk 0:02:58.3]}
2... d5 {[%clk 0:03:00.1]} 3. d3 {[%clk 0:02:57.7]} 3... g6 {[%clk 0:02:45.3]}
4. Be2 {[%clk 0:02:50.3]} 4... Bg7 {[%clk 0:02:44.7]} 5. O-O {[%clk 0:02:49.3]}
5... Bg4 {[%clk 0:02:41.5]} 6. Nbd2 {[%clk 0:02:48.3]} 6... e6 {[%clk
0:02:40.6]} 7. h3 {[%clk 0:02:45.5]} 7... Bxf3 {[%clk 0:02:39.7]} 8. Nxf3 {[%clk
0:02:46.4]} 8... Nd7 {[%clk 0:02:39.7]} 9. Re1 {[%clk 0:02:45]} 9... Ne7 {[%clk
0:02:39.4]} 10. Bf1 {[%clk 0:02:45]} 10... O-O {[%clk 0:02:39.3]} 11. c3 {[%clk
0:02:44]} 11... a5 {[%clk 0:02:39.1]} 12. a4 {[%clk 0:02:44]} 12... Ne5 {[%clk
0:02:22.8]} 13. Nxe5 {[%clk 0:02:34.5]} 13... Bxe5 {[%clk 0:02:23.7]} 14. Qb3
{[%clk 0:02:34.8]} 14... Qc7 {[%clk 0:02:19.9]} 15. d4 {[%clk 0:02:30]} 15...
Bg7 {[%clk 0:02:15.3]} 16. Bg5 {[%clk 0:02:29.5]} 16... Rfe8 {[%clk 0:02:02.9]}
17. Bd3 {[%clk 0:02:26.5]} 17... Nc8 {[%clk 0:02:00]} 18. Re2 {[%clk 0:02:06]}
18... Qb6 {[%clk 0:01:54]} 19. Qa3 {[%clk 0:02:02.9]} 19... Bf8 {[%clk
0:01:48.1]} 20. Qa2 {[%clk 0:02:02.9]} 20... Nd6 {[%clk 0:01:36.6]} 21. Rae1
{[%clk 0:01:58.6]} 21... dxe4 {[%clk 0:01:31]} 22. Bxe4 {[%clk 0:01:58.8]} 22...
Nxe4 {[%clk 0:01:31.9]} 23. Rxe4 {[%clk 0:01:59.7]} 23... Be7 {[%clk 0:01:22]}
24. Rxe6 {[%clk 0:01:57.4]} 24... fxe6 {[%clk 0:00:47.8]} 25. Qxe6+ {[%clk
0:01:57.3]} 25... Kg7 {[%clk 0:00:29.6]} 26. Bxe7 {[%clk 0:01:57.4]} 26... Qxb2
{[%clk 0:00:11.5]} 27. Re3 {[%clk 0:01:34.6]} 27... Qc1+ {[%clk 0:00:05.8]} 28.
Kh2 {[%clk 0:01:33.3]} 28... Kh6 {[%clk 0:00:05]} 29. Qf7 {[%clk 0:01:24.6]}
29... Qd2 {[%clk 0:00:03.6]} 30. h4 {[%clk 0:01:23]} 1-0

[Event "*** Titled Tuesday Blitz"]
[Site "Chess.com"]
[Date "2021.02.16"]
[Round "1"]
[White "Pikachess999"]
[Black "Kretov_Evgenij"]
[Result "1/2-1/2"]
[WhiteElo "2352"]
[BlackElo "2637"]
[TimeControl "180+1"]
[EndTime "10:05:54 PST"]
[Termination "Game drawn by agreement"]

1. e4 {[%clk 0:03:00.9]} 1... c5 {[%clk 0:02:59.9]} 2. a3 {[%clk 0:03:01.2]}
2... d5 {[%clk 0:02:58.4]} 3. exd5 {[%clk 0:03:01.3]} 3... Qxd5 {[%clk
0:02:58.6]} 4. Nc3 {[%clk 0:03:01.8]} 4... Qd8 {[%clk 0:02:58.1]} 5. Nf3 {[%clk
0:03:02.1]} 5... Nc6 {[%clk 0:02:58.2]} 6. Bb5 {[%clk 0:03:02]} 6... Bd7 {[%clk
0:02:58.4]} 7. d4 {[%clk 0:03:01.5]} 7... cxd4 {[%clk 0:02:57.8]} 8. Nxd4 {[%clk
0:03:02.4]} 8... Nxd4 {[%clk 0:02:57]} 9. Qxd4 {[%clk 0:03:03.3]} 9... Nf6
{[%clk 0:02:54.9]} 10. Bg5 {[%clk 0:03:01.6]} 10... Bxb5 {[%clk 0:02:54.3]} 11.
Nxb5 {[%clk 0:03:01.2]} 11... Qxd4 {[%clk 0:02:54.2]} 12. Nxd4 {[%clk
0:03:02.1]} 12... Ne4 {[%clk 0:02:54.1]} 13. Be3 {[%clk 0:03:01.6]} 13... a6
{[%clk 0:02:48.8]} 14. O-O-O {[%clk 0:03:00.5]} 14... e6 {[%clk 0:02:48.3]} 15.
Nb3 {[%clk 0:02:55.8]} 15... Be7 {[%clk 0:02:43.2]} 16. Na5 {[%clk 0:02:40.4]}
16... b5 {[%clk 0:02:43.2]} 17. Nc6 {[%clk 0:02:40.5]} 17... Bf6 {[%clk
0:02:42.3]} 18. f3 {[%clk 0:02:34.9]} 18... Bg5 {[%clk 0:02:07.1]} 19. Bxg5
{[%clk 0:02:34.8]} 19... Nf2 {[%clk 0:02:07.3]} 20. Rhe1 {[%clk 0:02:17.3]}
20... Nxd1 {[%clk 0:02:06.9]} 21. Rxd1 {[%clk 0:02:18.2]} 21... f6 {[%clk
0:02:06.7]} 22. Be3 {[%clk 0:02:17.2]} 22... Rc8 {[%clk 0:02:06.6]} 23. Nd4
{[%clk 0:02:05.6]} 23... Kf7 {[%clk 0:02:05.7]} 24. f4 {[%clk 0:01:58.1]} 24...
Rhd8 {[%clk 0:02:04.2]} 25. Nf3 {[%clk 0:01:54.2]} 25... Rxd1+ {[%clk
0:02:02.8]} 26. Kxd1 {[%clk 0:01:55.1]} 26... h6 {[%clk 0:02:00.5]} 27. Kd2
{[%clk 0:01:54.8]} 27... g5 {[%clk 0:02:00.4]} 28. g3 {[%clk 0:01:54.6]} 28...
Kg6 {[%clk 0:02:00.3]} 29. Nd4 {[%clk 0:01:53.9]} 29... Re8 {[%clk 0:01:59.4]}
30. Kd3 {[%clk 0:01:49.6]} 30... Kh5 {[%clk 0:01:56.1]} 31. Ke4 {[%clk
0:01:45.4]} 31... Kg4 {[%clk 0:01:54.1]} 32. b3 {[%clk 0:01:33.6]} 32... Kh3
{[%clk 0:01:53.9]} 33. c4 {[%clk 0:01:21.3]} 33... bxc4 {[%clk 0:01:53.2]} 34.
bxc4 {[%clk 0:01:22.2]} 34... Kxh2 {[%clk 0:01:53.5]} 35. Kf3 {[%clk 0:01:22.9]}
35... Rc8 {[%clk 0:01:34.3]} 36. Nxe6 {[%clk 0:01:09.3]} 36... Rxc4 {[%clk
0:01:34.3]} 37. Ng7 {[%clk 0:01:09.6]} 37... Rc3 {[%clk 0:01:24.7]} 38. Nf5
{[%clk 0:01:09.7]} 38... Rxa3 {[%clk 0:01:24.3]} 39. Nxh6 {[%clk 0:01:08.5]}
39... Kh3 {[%clk 0:01:22.4]} 40. fxg5 {[%clk 0:00:53.8]} 40... fxg5 {[%clk
0:01:22.2]} 41. g4 {[%clk 0:00:54.7]} 41... a5 {[%clk 0:01:08.6]} 42. Nf7 {[%clk
0:00:54.7]} 42... Rxe3+ {[%clk 0:01:06.4]} 43. Kxe3 {[%clk 0:00:54.5]} 43...
Kxg4 {[%clk 0:01:06.8]} 44. Nxg5 {[%clk 0:00:54.7]} 44... Kxg5 {[%clk
0:01:06.6]} 45. Kd4 {[%clk 0:00:55.4]} 1/2-1/2

[Event "*** Titled Tuesday Blitz"]
[Site "Chess.com"]
[Date "2021.02.16"]
[Round "1"]
[White "HanSchut"]
[Black "Ali_rastbod"]
[Result "0-1"]
[WhiteElo "2261"]
[BlackElo "2581"]
[TimeControl "180+1"]
[EndTime "10:05:57 PST"]
[Termination "Ali_rastbod won by resignation"]

1. e4 {[%clk 0:02:58.8]} 1... e6 {[%clk 0:02:52.5]} 2. d4 {[%clk 0:02:58.5]}
2... d5 {[%clk 0:02:51.9]} 3. Nc3 {[%clk 0:02:58.6]} 3... Bb4 {[%clk 0:02:51.2]}
4. exd5 {[%clk 0:02:57]} 4... exd5 {[%clk 0:02:52.1]} 5. Bd3 {[%clk 0:02:55.2]}
5... Nc6 {[%clk 0:02:51.9]} 6. Qe2+ {[%clk 0:02:49.5]} 6... Nge7 {[%clk
0:02:49.8]} 7. Be3 {[%clk 0:02:41.5]} 7... O-O {[%clk 0:02:46]} 8. a3 {[%clk
0:02:41.7]} 8... Ba5 {[%clk 0:02:23.6]} 9. Qh5 {[%clk 0:02:27.7]} 9... g6 {[%clk
0:02:18.3]} 10. Qh6 {[%clk 0:02:12.8]} 10... Nf5 {[%clk 0:02:17.4]} 11. Bxf5
{[%clk 0:02:12.7]} 11... Bxf5 {[%clk 0:02:18.3]} 12. Ne2 {[%clk 0:01:55.5]}
12... Bxc2 {[%clk 0:02:16.9]} 13. h4 {[%clk 0:01:55.3]} 13... f6 {[%clk
0:02:13.6]} 14. h5 {[%clk 0:01:47.8]} 14... g5 {[%clk 0:02:13.7]} 15. f4 {[%clk
0:00:55]} 15... Ne7 {[%clk 0:02:03.5]} 16. g4 {[%clk 0:00:45.5]} 16... Kh8
{[%clk 0:01:57.2]} 17. fxg5 {[%clk 0:00:33.6]} 17... Ng8 {[%clk 0:01:55.8]} 18.
Kd2 {[%clk 0:00:26]} 18... Nxh6 {[%clk 0:01:54]} 19. gxh6 {[%clk 0:00:26.9]}
19... Be4 {[%clk 0:01:53.3]} 20. Rh4 {[%clk 0:00:23.1]} 20... f5 {[%clk
0:01:47.5]} 21. g5 {[%clk 0:00:23.1]} 21... c5 {[%clk 0:01:47.7]} 22. Nf4 {[%clk
0:00:22.4]} 22... Bb6 {[%clk 0:01:40]} 23. Nce2 {[%clk 0:00:14.7]} 23... c4
{[%clk 0:01:38.6]} 24. Nc3 {[%clk 0:00:14.3]} 24... Qd6 {[%clk 0:01:37.9]} 25.
g6 {[%clk 0:00:14]} 25... Rf6 {[%clk 0:01:37.3]} 26. g7+ {[%clk 0:00:14.3]}
26... Kg8 {[%clk 0:01:37.6]} 27. Rg1 {[%clk 0:00:12.8]} 27... Rxh6 {[%clk
0:01:37.3]} 28. Rh3 {[%clk 0:00:09.3]} 28... Rf6 {[%clk 0:01:36.8]} 29. Rhg3
{[%clk 0:00:09.5]} 29... Ba5 {[%clk 0:01:34.8]} 30. h6 {[%clk 0:00:09.3]} 30...
Rxh6 {[%clk 0:01:33.9]} 31. Rg5 {[%clk 0:00:08.9]} 31... Rh2+ {[%clk 0:01:33.1]}
32. Kc1 {[%clk 0:00:08.1]} 32... Bxc3 {[%clk 0:01:32.7]} 33. bxc3 {[%clk
0:00:08.6]} 33... Qxa3+ {[%clk 0:01:33.2]} 34. Kd1 {[%clk 0:00:09.5]} 34... Qb3+
{[%clk 0:01:32.2]} 35. Ke1 {[%clk 0:00:09.1]} 35... Qb1+ {[%clk 0:01:33.1]} 0-1

[Event "*** Titled Tuesday Blitz"]
[Site "Chess.com"]
[Date "2021.02.16"]
[Round "1"]
[White "fyall777"]
[Black "beto-betun"]
[Result "1-0"]
[WhiteElo "2521"]
[BlackElo "2185"]
[TimeControl "180+1"]
[EndTime "10:06:01 PST"]
[Termination "fyall777 won by resignation"]

1. e4 {[%clk 0:03:00.9]} 1... c5 {[%clk 0:02:58.7]} 2. Nf3 {[%clk 0:03:00.8]}
2... d6 {[%clk 0:02:58.7]} 3. c3 {[%clk 0:03:01.1]} 3... Nf6 {[%clk 0:02:57.7]}
4. Be2 {[%clk 0:03:01.4]} 4... g6 {[%clk 0:02:57.5]} 5. O-O {[%clk 0:03:01.1]}
5... Bg7 {[%clk 0:02:56]} 6. d3 {[%clk 0:03:01.6]} 6... O-O {[%clk 0:02:55.5]}
7. Bg5 {[%clk 0:03:01.1]} 7... h6 {[%clk 0:02:53.4]} 8. Bh4 {[%clk 0:03:00.1]}
8... g5 {[%clk 0:02:51.8]} 9. Bg3 {[%clk 0:03:00]} 9... Nc6 {[%clk 0:02:47.1]}
10. Nbd2 {[%clk 0:02:56.5]} 10... e5 {[%clk 0:02:44.6]} 11. Ne1 {[%clk
0:02:55.1]} 11... Be6 {[%clk 0:02:40]} 12. Nc2 {[%clk 0:02:55]} 12... Qb6 {[%clk
0:02:34.7]} 13. b3 {[%clk 0:02:49.7]} 13... Nd7 {[%clk 0:02:30.6]} 14. Ne3
{[%clk 0:02:49]} 14... Nf6 {[%clk 0:02:22.4]} 15. h4 {[%clk 0:02:42.8]} 15...
Nh7 {[%clk 0:02:19.2]} 16. Bg4 {[%clk 0:02:40.2]} 16... Rfe8 {[%clk 0:02:06.7]}
17. Bf5 {[%clk 0:02:37.8]} 17... Qc7 {[%clk 0:01:55.7]} 18. hxg5 {[%clk
0:02:27]} 18... hxg5 {[%clk 0:01:52.3]} 19. Qh5 {[%clk 0:02:20.6]} 19... Bxf5
{[%clk 0:01:34.6]} 20. Nxf5 {[%clk 0:02:19.8]} 20... Qd8 {[%clk 0:01:31.7]} 21.
Nc4 {[%clk 0:02:19.2]} 21... Re6 {[%clk 0:01:25.4]} 22. Nce3 {[%clk 0:02:11.2]}
22... Ne7 {[%clk 0:01:14.5]} 23. Nxe7+ {[%clk 0:02:00.4]} 23... Qxe7 {[%clk
0:01:14.4]} 24. Nf5 {[%clk 0:02:00.6]} 24... Qf6 {[%clk 0:01:13.7]} 25. f3
{[%clk 0:02:00.5]} 25... Qg6 {[%clk 0:01:12.4]} 26. Qxg6 {[%clk 0:01:58.2]}
26... Rxg6 {[%clk 0:01:13.1]} 27. Ne7+ {[%clk 0:01:58.3]} 27... Kf8 {[%clk
0:01:12.6]} 28. Nxg6+ {[%clk 0:01:58.2]} 28... fxg6 {[%clk 0:01:13.5]} 29. Bf2
{[%clk 0:01:56.5]} 29... Ke7 {[%clk 0:01:09.5]} 30. Be3 {[%clk 0:01:56.3]} 30...
Bf6 {[%clk 0:01:08]} 31. Rad1 {[%clk 0:01:56.1]} 31... Nf8 {[%clk 0:01:07.2]}
32. d4 {[%clk 0:01:55.6]} 32... cxd4 {[%clk 0:01:08.1]} 33. cxd4 {[%clk
0:01:54.8]} 33... Rc8 {[%clk 0:01:07.9]} 34. d5 {[%clk 0:01:50.4]} 34... Nd7
{[%clk 0:01:07.3]} 35. Rc1 {[%clk 0:01:49.9]} 35... Kd8 {[%clk 0:00:19]} 36.
Rxc8+ {[%clk 0:01:47]} 36... Kxc8 {[%clk 0:00:19.9]} 37. Kf2 {[%clk 0:01:46.9]}
37... Bd8 {[%clk 0:00:18.3]} 38. Rh1 {[%clk 0:01:46]} 38... b6 {[%clk
0:00:16.2]} 39. Rh6 {[%clk 0:01:44.7]} 39... g4 {[%clk 0:00:07]} 40. Rxg6 {[%clk
0:01:42.5]} 40... gxf3 {[%clk 0:00:06.5]} 41. Kxf3 {[%clk 0:01:42.8]} 41... Nf8
{[%clk 0:00:05.6]} 42. Rg8 {[%clk 0:01:41.4]} 42... Nd7 {[%clk 0:00:05.8]} 43.
Bg5 {[%clk 0:01:41.3]} 1-0

[Event "*** Titled Tuesday Blitz"]
[Site "Chess.com"]
[Date "2021.02.16"]
[Round "1"]
[White "AryanTari"]
[Black "SanQui14"]
[Result "1-0"]
[WhiteElo "2905"]
[BlackElo "2444"]
[TimeControl "180+1"]
[EndTime "10:06:02 PST"]
[Termination "AryanTari won by resignation"]

1. d4 {[%clk 0:02:59.8]} 1... Nf6 {[%clk 0:02:59.6]} 2. Nf3 {[%clk 0:02:59.9]}
2... g6 {[%clk 0:02:59.5]} 3. Bg5 {[%clk 0:02:58.5]} 3... Bg7 {[%clk 0:02:59.7]}
4. Nbd2 {[%clk 0:02:58.9]} 4... d5 {[%clk 0:02:59.6]} 5. e3 {[%clk 0:02:58.7]}
5... O-O {[%clk 0:02:59.5]} 6. Bd3 {[%clk 0:02:58.7]} 6... b6 {[%clk 0:02:57.2]}
7. c3 {[%clk 0:02:57.3]} 7... Bb7 {[%clk 0:02:57.5]} 8. a4 {[%clk 0:02:57.5]}
8... a6 {[%clk 0:02:55.9]} 9. Ne5 {[%clk 0:02:48.6]} 9... Nbd7 {[%clk
0:02:54.1]} 10. f4 {[%clk 0:02:35.1]} 10... c5 {[%clk 0:02:52.7]} 11. O-O {[%clk
0:02:32]} 11... Ne4 {[%clk 0:02:39.1]} 12. Bh4 {[%clk 0:02:32.1]} 12... Ndf6
{[%clk 0:02:26]} 13. a5 {[%clk 0:02:14.6]} 13... b5 {[%clk 0:02:11.2]} 14. Bxe4
{[%clk 0:02:14.8]} 14... Nxe4 {[%clk 0:02:05.4]} 15. Nxe4 {[%clk 0:02:14.9]}
15... dxe4 {[%clk 0:02:05.8]} 16. dxc5 {[%clk 0:02:15.8]} 16... Qc7 {[%clk
0:01:56.7]} 17. c6 {[%clk 0:02:02.5]} 17... Bc8 {[%clk 0:01:46.9]} 18. Nd7
{[%clk 0:01:57.7]} 18... Bxd7 {[%clk 0:01:23.9]} 19. Qxd7 {[%clk 0:01:58.3]}
19... Qxd7 {[%clk 0:01:05]} 20. cxd7 {[%clk 0:01:59.2]} 20... Rfd8 {[%clk
0:01:03.1]} 21. Rfd1 {[%clk 0:01:52.6]} 21... Ra7 {[%clk 0:01:00.1]} 22. Bxe7
{[%clk 0:01:45.7]} 22... Rdxd7 {[%clk 0:00:59.1]} 23. Bc5 {[%clk 0:01:45.4]}
23... Rac7 {[%clk 0:00:57.1]} 24. Bb6 {[%clk 0:01:45.3]} 24... Rb7 {[%clk
0:00:56.6]} 25. Kf2 {[%clk 0:01:40.1]} 25... f5 {[%clk 0:00:54]} 26. Ke2 {[%clk
0:01:32.4]} 26... Kf7 {[%clk 0:00:53.6]} 27. Rac1 {[%clk 0:01:25.6]} 27... Ke6
{[%clk 0:00:50.7]} 28. Bd4 {[%clk 0:01:20.7]} 28... Bf8 {[%clk 0:00:39.5]} 29.
c4 {[%clk 0:01:19.9]} 29... bxc4 {[%clk 0:00:25.9]} 30. Rxc4 {[%clk 0:01:20.8]}
30... Bd6 {[%clk 0:00:19.3]} 31. Rc6 {[%clk 0:01:19.6]} 31... Rdc7 {[%clk
0:00:10.3]} 32. Rxa6 {[%clk 0:01:19.7]} 32... Rc2+ {[%clk 0:00:10]} 33. Rd2
{[%clk 0:01:20.2]} 33... Rc4 {[%clk 0:00:08.3]} 34. Be5 {[%clk 0:01:18.9]} 1-0